[Event "ONJK FGH 1"]
[Site "Enschede, Netherlands"]
[Date "2022.08.09"]
[Round "5.2"]
[White "Terlouw, Frank"]
[Black "De Wit, Jim"]
[Result "0-1"]
[TimeControl "25min + 10sec/move"]
[WhiteElo "731"]
[BlackElo "889"]

1. e4 {[%clk 00:25:19]} c5 {[%clk 00:25:16]} {[%emt 00:00:05]} 2. Nf3 {[%clk
00:25:26]} {[%emt 00:00:03]} d6 {[%clk 00:25:24]} {[%emt 00:00:02]} 3. c3
{[%clk 00:25:26]} {[%emt 00:00:10]} e5 {[%emt 00:00:13]} 4. d4 {[%clk
00:25:11]} {[%emt 00:00:15]} exd4 {[%emt 00:00:04]} 5. cxd4 {[%emt 00:00:01]}
cxd4 {[%clk 00:25:34]} {[%emt 00:00:02]} 6. Qxd4 {[%emt 00:00:04]} Nc6 {[%emt
00:00:02]} 7. Qe3 {[%clk 00:24:53]} {[%emt 00:00:21]} Nf6 {[%emt 00:00:05]} 8.
Nc3 {[%emt 00:00:04]} Be7 {[%clk 00:25:23]} {[%emt 00:00:03]} 9. Nd5 {[%clk
00:24:32]} {[%emt 00:00:40]} O-O {[%clk 00:25:08]} {[%emt 00:00:07]} 10. Nxe7+
{[%clk 00:24:20]} {[%emt 00:00:40]} Qxe7 {[%clk 00:25:14]} {[%emt 00:00:04]} 11.
Bd3 {[%clk 00:24:13]} {[%emt 00:00:04]} Re8 {[%clk 00:25:22]} 12. Nd2 {[%clk
00:23:54]} {[%emt 00:00:44]} Qd7 {[%clk 00:25:28]} {[%emt 00:00:03]} 13. b3
{[%clk 00:24:02]} {[%emt 00:00:04]} d5 {[%clk 00:25:36]} {[%emt 00:00:02]} 14.
f3 {[%clk 00:24:03]} {[%emt 00:00:09]} d4 {[%clk 00:25:23]} {[%emt 00:00:15]}
15. Qf4 {[%clk 00:23:42]} {[%emt 00:00:37]} Nh5 {[%clk 00:25:15]} {[%emt
00:00:14]} 16. Qh4 {[%clk 00:23:46]} {[%emt 00:00:12]} g6 {[%clk 00:25:15]}
{[%emt 00:00:10]} 17. O-O {[%clk 00:23:17]} {[%emt 00:00:39]} Qc7 {[%clk
00:25:14]} {[%emt 00:00:10]} 18. Nc4 {[%clk 00:22:10]} {[%emt 00:01:18]} b5
{[%clk 00:25:08]} {[%emt 00:00:14]} 19. Na3 {[%clk 00:22:09]} {[%emt 00:00:12]}
Nb4 {[%clk 00:24:59]} {[%emt 00:00:17]} 20. Bxb5 {[%clk 00:21:48]} {[%emt
00:00:33]} Rd8 {[%clk 00:24:54]} {[%emt 00:00:08]} 21. Bd3 {[%clk 00:21:12]}
{[%emt 00:00:53]} Nxd3 {[%clk 00:24:57]} {[%emt 00:00:08]} 22. Nb5 {[%clk
00:21:11]} {[%emt 00:00:11]} Qb6 {[%clk 00:24:40]} {[%emt 00:00:23]} 23. Bd2
{[%clk 00:20:32]} {[%emt 00:00:52]} Be6 {[%clk 00:24:32]} {[%emt 00:00:18]} 24.
Qg5 {[%clk 00:19:04]} {[%emt 00:01:38]} f6 {[%clk 00:24:28]} {[%emt 00:00:12]}
25. Qh4 {[%clk 00:18:37]} {[%emt 00:00:38]} Qxb5 {[%clk 00:24:26]} {[%emt
00:00:13]} 26. g4 {[%clk 00:18:08]} {[%emt 00:00:39]} Ng7 {[%clk 00:24:10]}
{[%emt 00:00:25]} 27. Qxf6 {[%clk 00:17:56]} {[%emt 00:00:23]} Qc5 {[%clk
00:24:02]} {[%emt 00:00:16]} 28. f4 {[%clk 00:17:39]} {[%emt 00:00:29]} Rf8
{[%clk 00:23:41]} {[%emt 00:00:29]} 29. Qg5 {[%clk 00:17:26]} {[%emt 00:00:23]}
Qxg5 {[%clk 00:23:42]} {[%emt 00:00:12]} 30. fxg5 {[%clk 00:17:34]} Rxf1+
{[%clk 00:23:49]} {[%emt 00:00:03]} 31. Rxf1 {[%clk 00:17:42]} Rf8 {[%clk
00:23:44]} {[%emt 00:00:07]} 32. Rf6 {[%clk 00:17:51]} {[%emt 00:00:11]} Rxf6
{[%emt 00:00:03]} 33. gxf6 {[%emt 00:00:02]} Ne8 {[%clk 00:23:37]} {[%emt
00:00:05]} 34. g5 {[%clk 00:17:44]} {[%emt 00:00:23]} Nd6 {[%clk 00:23:16]}
{[%emt 00:00:24]} 35. e5 {[%clk 00:17:15]} {[%emt 00:00:47]} Ne4 {[%emt
00:00:06]} 36. Ba5 {[%emt 00:00:18]} Nxe5 {[%clk 00:22:47]} {[%emt 00:00:10]}
37. h4 {[%clk 00:17:07]} {[%emt 00:00:24]} d3 {[%clk 00:22:53]} {[%emt
00:00:03]} 38. Kf1 {[%clk 00:17:06]} {[%emt 00:00:10]} d2 {[%emt 00:00:15]} 39.
Ke2 {[%emt 00:00:06]} Bg4+ {[%clk 00:22:40]} {[%emt 00:00:03]} 40. Ke3 {[%clk
00:17:06]} {[%emt 00:00:11]} d1=Q {[%clk 00:22:40]} {[%emt 00:00:05]} 41. Kxe4
{[%clk 00:17:04]} {[%emt 00:00:15]} Qd3+ {[%emt 00:00:20]} 42. Kxe5 {[%emt
00:00:13]} Qb5+ {[%clk 00:22:10]} {[%emt 00:00:07]} 43. Kf4 {[%clk 00:17:05]}
{[%emt 00:00:09]} Bf5 {[%clk 00:22:14]} {[%emt 00:00:07]} 44. b4 {[%clk
00:17:10]} {[%emt 00:00:06]} Qc4+ {[%clk 00:22:21]} {[%emt 00:00:03]} 45. Ke5
{[%clk 00:17:16]} {[%emt 00:00:03]} Qe4+ {[%clk 00:22:27]} {[%emt 00:00:04]} 46.
Kd6 {[%clk 00:17:22]} {[%emt 00:00:05]} Qd4+ {[%clk 00:22:31]} {[%emt
00:00:04]} 47. Kc6 {[%clk 00:17:28]} {[%emt 00:00:05]} Be4+ {[%clk 00:22:33]}
{[%emt 00:00:07]} 48. Kc7 {[%clk 00:17:19]} {[%emt 00:00:20]} Qd5 {[%clk
00:22:22]} {[%emt 00:00:21]} 49. Kc8 {[%clk 00:16:42]} {[%emt 00:00:48]} Bf5+
{[%clk 00:22:07]} {[%emt 00:00:18]} 50. Kb8 {[%clk 00:16:36]} {[%emt 00:00:22]}
Qd7 {[%clk 00:22:03]} {[%emt 00:00:07]} 51. Ka8 {[%clk 00:16:23]} {[%emt
00:00:30]} Be4+ {[%clk 00:22:00]} {[%emt 00:00:12]} 52. Kb8 {[%clk 00:15:58]}
{[%emt 00:00:31]} Qb7# {[%emt 00:00:17]} 0-1

[Event "ONJK FGH 1"]
[Site "Enschede, Netherlands"]
[Date "2022.08.09"]
[Round "5.3"]
[White "Datta, Satadru"]
[Black "Zhang, Melody"]
[Result "1-0"]
[TimeControl "25min + 10sec/move"]
[WhiteElo "786"]
[BlackElo "667"]

1. e4 {[%clk 00:25:18]} {[%emt 00:00:01]} e5 {[%clk 00:25:19]} 2. Nf3 {[%clk
00:25:26]} {[%emt 00:00:03]} Nc6 {[%clk 00:25:28]} {[%emt 00:00:02]} 3. Bc4
{[%clk 00:25:29]} {[%emt 00:00:06]} Bc5 {[%clk 00:25:36]} {[%emt 00:00:02]} 4.
Nc3 {[%clk 00:25:32]} {[%emt 00:00:07]} Nf6 {[%clk 00:25:42]} {[%emt 00:00:04]}
5. d3 {[%clk 00:25:35]} {[%emt 00:00:07]} O-O {[%clk 00:25:43]} {[%emt
00:00:09]} 6. Bg5 {[%clk 00:25:32]} {[%emt 00:00:13]} h6 {[%clk 00:25:51]}
{[%emt 00:00:02]} 7. Bh4 {[%clk 00:25:39]} {[%emt 00:00:04]} d6 {[%clk
00:26:00]} 8. Nd5 {[%clk 00:25:45]} {[%emt 00:00:04]} g5 {[%clk 00:25:32]}
{[%emt 00:00:37]} 9. Nxf6+ {[%clk 00:25:32]} {[%emt 00:00:22]} Qxf6 {[%clk
00:25:34]} {[%emt 00:00:09]} 10. Bg3 {[%clk 00:25:13]} {[%emt 00:00:30]} Bg4
{[%clk 00:25:37]} {[%emt 00:00:07]} 11. O-O {[%clk 00:24:55]} {[%emt 00:00:27]}
Nd4 {[%clk 00:25:36]} {[%emt 00:00:11]} 12. c3 {[%clk 00:24:22]} {[%emt
00:00:44]} Nxf3+ {[%clk 00:25:41]} {[%emt 00:00:04]} 13. gxf3 {[%clk 00:24:28]}
{[%emt 00:00:03]} Bxf3 {[%clk 00:25:47]} {[%emt 00:00:05]} 14. Qe1 {[%clk
00:24:14]} {[%emt 00:00:24]} Bg4 {[%clk 00:25:28]} {[%emt 00:00:27]} 15. b4
{[%clk 00:24:00]} {[%emt 00:00:27]} Bb6 {[%clk 00:25:29]} {[%emt 00:00:09]} 16.
a4 {[%clk 00:23:50]} {[%emt 00:00:20]} Bh3 {[%emt 00:00:04]} 17. a5 {[%emt
00:00:10]} Bxf1 {[%clk 00:25:16]} {[%emt 00:00:07]} 18. Qxf1 {[%clk 00:23:51]}
{[%emt 00:00:10]} Qg6 {[%clk 00:24:37]} {[%emt 00:00:48]} 19. axb6 {[%clk
00:23:49]} {[%emt 00:00:12]} axb6 {[%clk 00:24:46]} {[%emt 00:00:01]} 20. Rb1
{[%clk 00:23:38]} {[%emt 00:00:20]} c6 {[%clk 00:24:49]} {[%emt 00:00:08]} 21.
Bb3 {[%clk 00:23:23]} {[%emt 00:00:25]} c5 {[%clk 00:24:21]} {[%emt 00:00:38]}
22. b5 {[%clk 00:23:12]} {[%emt 00:00:21]} Ra5 {[%clk 00:23:20]} {[%emt
00:01:11]} 23. Bc2 {[%clk 00:23:06]} {[%emt 00:00:15]} Re8 {[%clk 00:22:58]}
{[%emt 00:00:33]} 24. Qe2 {[%clk 00:22:47]} {[%emt 00:00:30]} Re6 {[%clk
00:22:33]} {[%emt 00:00:30]} 25. Bd1 {[%clk 00:22:20]} {[%emt 00:00:42]} f5
{[%clk 00:21:47]} {[%emt 00:00:53]} 26. Qh5 {[%clk 00:22:06]} {[%emt 00:00:26]}
fxe4 {[%clk 00:21:45]} {[%emt 00:00:12]} 27. Qxg6+ {[%clk 00:22:05]} {[%emt
00:00:11]} Rxg6 {[%clk 00:21:52]} {[%emt 00:00:02]} 28. dxe4 {[%clk 00:22:09]}
{[%emt 00:00:06]} Ra4 {[%clk 00:21:40]} {[%emt 00:00:22]} 29. Bxa4 {[%clk
00:22:17]} {[%emt 00:00:03]} Re6 {[%clk 00:21:15]} {[%emt 00:00:34]} 30. Bb3
{[%clk 00:22:24]} {[%emt 00:00:04]} d5 {[%clk 00:21:18]} {[%emt 00:00:07]} 31.
Bxd5 {[%clk 00:22:30]} {[%emt 00:00:04]} Kf7 {[%clk 00:21:17]} {[%emt
00:00:11]} 32. Bxe6+ {[%clk 00:22:36]} {[%emt 00:00:03]} Kxe6 {[%clk 00:21:25]}
33. Kg2 {[%clk 00:22:41]} {[%emt 00:00:06]} h5 {[%clk 00:21:30]} {[%emt
00:00:05]} 34. h3 {[%clk 00:22:38]} {[%emt 00:00:13]} h4 {[%clk 00:21:27]}
{[%emt 00:00:13]} 35. Bh2 {[%clk 00:22:46]} {[%emt 00:00:03]} Kf6 {[%clk
00:20:46]} {[%emt 00:00:51]} 36. Ra1 {[%clk 00:22:46]} {[%emt 00:00:10]} Ke6
{[%clk 00:20:05]} {[%emt 00:01:23]} 37. Ra8 {[%clk 00:22:38]} Kd6 {[%clk
00:19:58]} {[%emt 00:00:21]} 38. Rb8 {[%clk 00:22:44]} c4 {[%clk 00:19:59]} 39.
Rxb7 {[%clk 00:22:48]} Kc5 {[%clk 00:20:06]} 40. Rxb6 {[%clk 00:22:54]} g4
{[%clk 00:20:10]} {[%emt 00:00:10]} 41. Rg6 {[%clk 00:22:54]} Kxb5 {[%clk
00:20:15]} 42. Rxg4 {[%clk 00:23:00]} Ka4 {[%clk 00:20:21]} 43. Bxe5 {[%clk
00:23:06]} Kb5 {[%clk 00:20:28]} {[%emt 00:00:07]} 44. f4 Kc6 {[%emt 00:00:03]}
45. f5 {[%clk 00:23:14]} Kd7 {[%clk 00:20:46]} {[%emt 00:00:09]} 46. f6 {[%clk
00:23:23]} Ke6 {[%clk 00:20:53]} {[%emt 00:00:07]} 47. Rg8 {[%clk 00:23:29]}
Kf7 {[%clk 00:21:01]} {[%emt 00:00:05]} 48. Bd4 {[%clk 00:23:35]} Ke6 {[%emt
00:00:10]} 49. Ra8 Kf7 {[%clk 00:20:53]} {[%emt 00:00:12]} 50. Ra6 {[%clk
00:23:41]} Kf8 {[%clk 00:20:57]} {[%emt 00:00:08]} 51. e5 {[%clk 00:23:49]} Ke8
{[%clk 00:21:04]} {[%emt 00:00:08]} 52. Ra7 {[%clk 00:23:49]} Kf8 {[%clk
00:21:13]} {[%emt 00:00:10]} 53. e6 {[%clk 00:23:53]} Ke8 {[%clk 00:21:22]}
{[%emt 00:00:08]} 54. Bc5 {[%clk 00:23:50]} Kd8 {[%clk 00:21:29]} {[%emt
00:00:13]} 55. f7 {[%clk 00:23:46]} 1-0

[Event "ONJK FGH 1"]
[Site "Enschede, Netherlands"]
[Date "2022.08.09"]
[Round "6.1"]
[White "De Wit, Jim"]
[Black "Okita, Ryoga"]
[Result "0-1"]
[TimeControl "25min + 10sec/move"]
[WhiteElo "889"]
[BlackElo "829"]

1. d4 {[%clk 00:25:15]} {[%emt 00:00:04]} f5 {[%clk 00:25:13]} {[%emt
00:00:08]} 2. Nf3 {[%clk 00:25:17]} {[%emt 00:00:07]} Nf6 {[%clk 00:25:21]}
{[%emt 00:00:03]} 3. Nc3 {[%clk 00:25:23]} {[%emt 00:00:03]} e6 {[%emt
00:00:04]} 4. e3 {[%clk 00:25:30]} d6 {[%clk 00:25:34]} {[%emt 00:00:07]} 5.
Bd3 {[%clk 00:25:38]} {[%emt 00:00:01]} Be7 {[%clk 00:25:40]} {[%emt 00:00:05]}
6. Bd2 {[%clk 00:25:45]} {[%emt 00:00:02]} O-O {[%clk 00:25:48]} {[%emt
00:00:02]} 7. O-O {[%clk 00:25:52]} {[%emt 00:00:03]} Nc6 {[%clk 00:25:48]}
{[%emt 00:00:11]} 8. Qe2 {[%emt 00:00:08]} e5 {[%emt 00:00:01]} 9. dxe5 {[%clk
00:25:45]} {[%emt 00:00:06]} dxe5 {[%clk 00:25:57]} 10. Bc4+ {[%clk 00:25:46]}
{[%emt 00:00:10]} Kh8 {[%clk 00:26:04]} {[%emt 00:00:04]} 11. Ne1 {[%clk
00:25:41]} {[%emt 00:00:14]} e4 {[%clk 00:25:58]} {[%emt 00:00:17]} 12. f3
{[%clk 00:25:40]} {[%emt 00:00:11]} Ng8 {[%clk 00:25:58]} {[%emt 00:00:10]} 13.
fxe4 {[%clk 00:25:41]} {[%emt 00:00:09]} fxe4 {[%clk 00:26:07]} 14. Rxf8 {[%clk
00:25:48]} {[%emt 00:00:03]} Qxf8 {[%clk 00:26:16]} 15. Nxe4 {[%clk 00:25:34]}
{[%emt 00:00:24]} Bf5 {[%clk 00:26:07]} {[%emt 00:00:19]} 16. Nc3 {[%clk
00:25:16]} {[%emt 00:00:26]} Qf6 {[%clk 00:26:07]} {[%emt 00:00:12]} 17. Rb1
{[%clk 00:24:56]} {[%emt 00:00:30]} Bd6 {[%clk 00:26:12]} {[%emt 00:00:06]} 18.
Nd5 {[%clk 00:24:44]} {[%emt 00:00:20]} Qg6 {[%clk 00:25:57]} {[%emt 00:00:24]}
19. Nf3 {[%clk 00:24:31]} {[%emt 00:00:24]} Bxc2 {[%clk 00:25:44]} {[%emt
00:00:23]} 20. Rc1 {[%clk 00:24:28]} {[%emt 00:00:10]} Be4 {[%clk 00:25:52]}
{[%emt 00:00:05]} 21. b4 {[%clk 00:23:51]} {[%emt 00:00:47]} Qh6 {[%emt
00:00:17]} 22. b5 {[%clk 00:23:47]} {[%emt 00:00:12]} Bxf3 {[%clk 00:25:49]}
{[%emt 00:00:09]} 23. Qxf3 {[%clk 00:23:47]} {[%emt 00:00:09]} Qxh2+ {[%clk
00:25:51]} {[%emt 00:00:08]} 24. Kf2 {[%clk 00:23:54]} {[%emt 00:00:03]} Ne5
{[%clk 00:25:53]} {[%emt 00:00:07]} 25. Qe4 {[%clk 00:23:14]} {[%emt 00:00:42]}
Rf8+ {[%clk 00:26:01]} {[%emt 00:00:10]} 26. Ke2 {[%clk 00:22:53]} {[%emt
00:00:29]} Nxc4 {[%clk 00:26:05]} {[%emt 00:00:08]} 27. Qxc4 {[%clk 00:22:47]}
{[%emt 00:00:16]} Qxg2+ {[%clk 00:26:13]} {[%emt 00:00:02]} 28. Kd3 {[%clk
00:22:51]} {[%emt 00:00:05]} Qg6+ {[%clk 00:26:05]} {[%emt 00:00:19]} 29. Kc3
{[%clk 00:22:46]} {[%emt 00:00:14]} Be5+ {[%clk 00:26:13]} {[%emt 00:00:04]} 30.
Kb3 {[%clk 00:22:54]} {[%emt 00:00:01]} Qe6 {[%clk 00:25:18]} {[%emt 00:01:04]}
31. Rh1 {[%clk 00:22:18]} {[%emt 00:00:44]} Rd8 {[%clk 00:25:20]} {[%emt
00:00:11]} 32. e4 {[%clk 00:22:14]} {[%emt 00:00:13]} c6 {[%clk 00:25:29]}
{[%emt 00:00:02]} 33. Kc2 {[%clk 00:21:33]} {[%emt 00:00:51]} cxd5 {[%clk
00:25:38]} {[%emt 00:00:02]} 34. exd5 {[%clk 00:21:40]} {[%emt 00:00:03]} Qf5+
{[%clk 00:25:46]} {[%emt 00:00:02]} 35. Kc1 {[%clk 00:21:46]} {[%emt 00:00:05]}
Rc8 {[%clk 00:25:48]} {[%emt 00:00:07]} 36. Qxc8 {[%clk 00:21:47]} {[%emt
00:00:10]} Qxc8+ {[%clk 00:25:57]} 37. Kd1 {[%clk 00:21:54]} {[%emt 00:00:03]}
Qg4+ {[%clk 00:26:06]} {[%emt 00:00:02]} 38. Kc2 {[%clk 00:22:01]} {[%emt
00:00:02]} Bf4 {[%clk 00:26:15]} {[%emt 00:00:02]} 39. Bxf4 {[%clk 00:22:09]}
{[%emt 00:00:02]} Qxf4 {[%clk 00:26:24]} 40. d6 {[%clk 00:22:16]} {[%emt
00:00:03]} Qxd6 {[%clk 00:26:33]} {[%emt 00:00:02]} 41. a4 {[%clk 00:22:25]}
{[%emt 00:00:01]} Qb6 {[%clk 00:26:42]} 42. a5 {[%clk 00:22:34]} {[%emt
00:00:01]} Qxb5 {[%clk 00:26:50]} {[%emt 00:00:02]} 43. a6 {[%clk 00:22:42]}
{[%emt 00:00:02]} Qxa6 {[%clk 00:26:59]} 44. Rb1 {[%clk 00:22:50]} {[%emt
00:00:01]} Qg6+ {[%clk 00:27:07]} {[%emt 00:00:02]} 45. Kb2 {[%clk 00:22:59]}
{[%emt 00:00:02]} Qxb1+ {[%clk 00:27:16]} 46. Kxb1 {[%clk 00:23:07]} {[%emt
00:00:02]} h5 {[%clk 00:27:25]} 47. Kc1 {[%clk 00:23:15]} {[%emt 00:00:02]} a5
{[%clk 00:27:35]} 48. Kd2 {[%clk 00:23:24]} {[%emt 00:00:02]} h4 {[%clk
00:27:44]} 49. Ke3 {[%clk 00:23:31]} {[%emt 00:00:02]} h3 {[%clk 00:27:54]} 50.
Kf3 {[%clk 00:23:38]} {[%emt 00:00:03]} a4 {[%clk 00:28:04]} 51. Kg3 {[%clk
00:23:45]} {[%emt 00:00:03]} a3 {[%clk 00:28:13]} {[%emt 00:00:03]} 52. Kxh3
{[%clk 00:23:49]} {[%emt 00:00:04]} a2 {[%clk 00:28:21]} {[%emt 00:00:05]} 53.
Kg3 {[%clk 00:23:57]} a1=Q {[%clk 00:28:28]} {[%emt 00:00:02]} 54. Kf3 {[%clk
00:24:06]} {[%emt 00:00:01]} Qd4 {[%clk 00:28:37]} {[%emt 00:00:02]} 55. Ke2
{[%clk 00:24:14]} {[%emt 00:00:02]} Qc3 {[%clk 00:28:46]} 56. Kd1 {[%clk
00:24:23]} {[%emt 00:00:01]} Qb2 {[%clk 00:28:55]} 57. Ke1 {[%clk 00:24:31]}
{[%emt 00:00:01]} Nf6 {[%clk 00:29:05]} 58. Kf1 {[%clk 00:24:39]} {[%emt
00:00:03]} Ne4 {[%clk 00:29:14]} 59. Kg1 {[%clk 00:24:46]} {[%emt 00:00:03]}
Nf6 {[%emt 00:00:12]} 60. Kf1 {[%clk 00:24:52]} {[%emt 00:00:01]} Kh7 {[%clk
00:29:23]} {[%emt 00:00:02]} 61. Kg1 {[%clk 00:25:01]} Kg6 {[%clk 00:29:33]} 62.
Kf1 {[%clk 00:25:09]} Kg5 {[%clk 00:29:43]} 63. Kg1 {[%clk 00:25:18]} {[%emt
00:00:02]} Kg4 {[%clk 00:29:53]} 64. Kf1 {[%clk 00:25:22]} {[%emt 00:00:05]}
Kf3 {[%clk 00:30:02]} 65. Ke1 {[%clk 00:25:19]} {[%emt 00:00:02]} Qe2# {[%clk
00:30:02]} 0-1

[Event "ONJK FGH 1"]
[Site "Enschede, Netherlands"]
[Date "2022.08.09"]
[Round "6.2"]
[White "Mousa, Besher"]
[Black "Datta, Satadru"]
[Result "1-0"]
[TimeControl "25min + 10sec/move"]
[WhiteElo "782"]
[BlackElo "786"]

1. e4 {[%clk 00:25:19]} e5 {[%clk 00:25:19]} {[%emt 00:00:02]} 2. Nf3 {[%clk
00:25:28]} {[%emt 00:00:01]} Nc6 {[%clk 00:25:27]} {[%emt 00:00:02]} 3. Bc4
{[%clk 00:25:36]} {[%emt 00:00:02]} Bc5 {[%clk 00:25:29]} {[%emt 00:00:08]} 4.
O-O {[%clk 00:25:44]} {[%emt 00:00:02]} Nf6 {[%clk 00:25:31]} {[%emt 00:00:08]}
5. Nc3 {[%clk 00:25:52]} {[%emt 00:00:02]} d6 {[%clk 00:25:37]} {[%emt
00:00:04]} 6. d3 {[%clk 00:26:00]} {[%emt 00:00:02]} Bg4 {[%clk 00:25:41]}
{[%emt 00:00:06]} 7. Be3 {[%clk 00:26:07]} {[%emt 00:00:03]} Bb6 {[%emt
00:00:30]} 8. h3 {[%clk 00:25:51]} Bh5 {[%clk 00:25:44]} {[%emt 00:00:12]} 9.
Bg5 {[%clk 00:25:54]} {[%emt 00:00:07]} Nd4 {[%clk 00:25:40]} {[%emt 00:00:15]}
10. Bxf6 {[%clk 00:25:47]} {[%emt 00:00:16]} Qxf6 {[%clk 00:25:41]} {[%emt
00:00:09]} 11. g4 {[%clk 00:25:45]} {[%emt 00:00:12]} Nxf3+ {[%emt 00:00:23]}
12. Kh1 {[%clk 00:25:51]} Bg6 {[%clk 00:25:27]} {[%emt 00:00:15]} 13. Nd5
{[%clk 00:25:48]} {[%emt 00:00:13]} Qd8 {[%clk 00:25:02]} {[%emt 00:00:35]} 14.
Nxb6 {[%clk 00:25:43]} {[%emt 00:00:15]} axb6 {[%clk 00:25:09]} {[%emt
00:00:03]} 15. Qxf3 {[%clk 00:25:48]} {[%emt 00:00:03]} O-O {[%clk 00:25:00]}
{[%emt 00:00:20]} 16. Qg3 {[%clk 00:25:08]} {[%emt 00:00:49]} Qe7 {[%clk
00:24:32]} {[%emt 00:00:40]} 17. h4 {[%clk 00:25:07]} {[%emt 00:00:35]} h6
{[%clk 00:24:33]} {[%emt 00:00:05]} 18. Kg2 {[%clk 00:24:51]} {[%emt 00:00:25]}
c5 {[%clk 00:23:44]} {[%emt 00:00:59]} 19. Qh3 {[%clk 00:24:39]} {[%emt
00:00:18]} Bh7 {[%emt 00:00:43]} 20. Rh1 {[%emt 00:00:30]} Rfe8 {[%clk
00:22:02]} {[%emt 00:00:41]} 21. Kf1 {[%clk 00:24:25]} {[%emt 00:00:21]} Qf6
{[%clk 00:21:45]} {[%emt 00:00:32]} 22. g5 {[%clk 00:24:11]} {[%emt 00:00:22]}
hxg5 {[%clk 00:20:59]} {[%emt 00:00:58]} 23. hxg5 {[%clk 00:24:07]} {[%emt
00:00:15]} Qg6 {[%clk 00:20:53]} {[%emt 00:00:15]} 24. Ke2 {[%clk 00:22:20]}
{[%emt 00:01:54]} Rad8 {[%clk 00:20:24]} {[%emt 00:00:36]} 25. Rh2 {[%clk
00:22:19]} {[%emt 00:00:16]} d5 {[%clk 00:19:36]} {[%emt 00:01:00]} 26. Bxd5
{[%clk 00:21:53]} {[%emt 00:00:35]} Rd6 {[%clk 00:19:12]} {[%emt 00:00:34]} 27.
Rah1 {[%clk 00:21:42]} {[%emt 00:00:18]} Kf8 {[%clk 00:18:16]} {[%emt
00:01:09]} 28. Qxh7 {[%emt 00:01:19]} Qxh7 {[%clk 00:18:19]} {[%emt 00:00:04]}
29. f3 {[%clk 00:20:35]} {[%emt 00:00:07]} Rg6 {[%clk 00:17:45]} 30. Rxh7
{[%clk 00:19:45]} Ke7 {[%clk 00:17:34]} {[%emt 00:01:21]} 31. Rg1 {[%clk
00:19:38]} Ke6 32. Bxb7 Kd7 33. Bd5 Ke7 {[%clk 00:17:10]} 34. a4 {[%clk
00:19:22]} {[%emt 00:00:51]} Kf8 {[%clk 00:16:37]} {[%emt 00:00:40]} 35. c3
{[%clk 00:19:20]} {[%emt 00:00:12]} Ke7 {[%clk 00:15:33]} {[%emt 00:01:13]} 36.
b4 {[%clk 00:19:23]} {[%emt 00:00:08]} Kf8 {[%clk 00:15:10]} {[%emt 00:00:33]}
37. a5 {[%clk 00:19:32]} {[%emt 00:00:01]} cxb4 {[%clk 00:15:04]} {[%emt
00:00:15]} 38. a6 {[%clk 00:19:39]} {[%emt 00:00:03]} Rd6 {[%clk 00:14:23]}
{[%emt 00:00:51]} 39. a7 {[%clk 00:19:41]} {[%emt 00:00:08]} Rdd8 {[%clk
00:14:24]} {[%emt 00:00:08]} 40. g6 {[%clk 00:19:39]} {[%emt 00:00:13]} fxg6
{[%emt 00:00:23]} 41. Rxg6 {[%clk 00:19:29]} {[%emt 00:00:08]} Re7 {[%emt
00:00:29]} 42. a8=Q {[%emt 00:00:05]} Rxa8 {[%clk 00:13:54]} {[%emt 00:00:05]}
43. Bxa8 {[%clk 00:19:38]} {[%emt 00:00:01]} Kg8 {[%clk 00:13:55]} {[%emt
00:00:08]} 44. Rh4 {[%clk 00:19:32]} {[%emt 00:00:12]} Kf7 {[%clk 00:13:43]}
{[%emt 00:00:27]} 45. Rhg4 {[%clk 00:19:34]} {[%emt 00:00:07]} Kf8 {[%clk
00:13:41]} {[%emt 00:00:14]} 46. Bd5 {[%clk 00:19:30]} {[%emt 00:00:14]} bxc3
{[%clk 00:13:42]} {[%emt 00:00:09]} 47. Kd1 {[%clk 00:19:38]} {[%emt 00:00:02]}
Rc7 {[%clk 00:13:45]} {[%emt 00:00:06]} 48. Kc2 {[%emt 00:00:07]} b5 {[%clk
00:13:41]} {[%emt 00:00:13]} 49. R6g5 {[%clk 00:19:40]} {[%emt 00:00:10]} b4
{[%clk 00:13:37]} {[%emt 00:00:17]} 50. Rxe5 {[%clk 00:19:39]} {[%emt
00:00:10]} b3+ {[%clk 00:13:07]} {[%emt 00:00:41]} 51. Bxb3 {[%clk 00:19:48]}
Rc8 {[%clk 00:12:37]} {[%emt 00:00:38]} 52. Rh4 {[%clk 00:19:56]} {[%emt
00:00:04]} g6 {[%clk 00:12:17]} {[%emt 00:00:29]} 53. d4 {[%clk 00:20:01]}
{[%emt 00:00:06]} Kg7 {[%clk 00:12:17]} {[%emt 00:00:09]} 54. d5 {[%clk
00:19:53]} {[%emt 00:00:19]} Kf6 {[%clk 00:12:20]} {[%emt 00:00:07]} 55. Re6+
{[%clk 00:19:56]} {[%emt 00:00:06]} Kg5 {[%clk 00:12:25]} {[%emt 00:00:06]} 56.
Rg4+ {[%clk 00:20:04]} {[%emt 00:00:02]} Kh6 {[%clk 00:12:29]} {[%emt
00:00:06]} 57. d6 {[%clk 00:20:11]} {[%emt 00:00:03]} Kh7 {[%clk 00:12:12]}
{[%emt 00:00:26]} 58. Ba4 {[%clk 00:19:57]} {[%emt 00:00:25]} Kg7 {[%clk
00:11:58]} {[%emt 00:00:23]} 59. d7 {[%clk 00:20:04]} {[%emt 00:00:03]} Rd8
{[%emt 00:00:03]} 60. Re8 Rxd7 {[%clk 00:11:55]} {[%emt 00:00:09]} 61. Bxd7
{[%clk 00:20:13]} {[%emt 00:00:01]} Kf7 {[%clk 00:11:57]} {[%emt 00:00:08]} 62.
Rf4+ {[%clk 00:20:14]} {[%emt 00:00:08]} Kg7 {[%clk 00:12:03]} {[%emt
00:00:04]} 63. Ra8 {[%clk 00:20:06]} {[%emt 00:00:18]} g5 {[%clk 00:12:08]}
{[%emt 00:00:05]} 64. Rg4 {[%clk 00:20:09]} {[%emt 00:00:07]} Kg6 {[%clk
00:12:14]} {[%emt 00:00:04]} 65. e5 {[%clk 00:20:16]} {[%emt 00:00:04]} Kh5
{[%clk 00:12:20]} {[%emt 00:00:03]} 66. Kxc3 {[%clk 00:20:23]} {[%emt
00:00:02]} Kh6 {[%clk 00:12:20]} {[%emt 00:00:11]} 67. e6 {[%clk 00:20:32]}
{[%emt 00:00:01]} Kg6 {[%clk 00:12:20]} {[%emt 00:00:10]} 68. e7 {[%clk
00:20:38]} {[%emt 00:00:02]} Kg7 {[%clk 00:12:20]} {[%emt 00:00:12]} 69. e8=Q
{[%clk 00:20:39]} {[%emt 00:00:08]} Kf6 {[%clk 00:12:22]} {[%emt 00:00:09]} 70.
Qe6+ {[%clk 00:20:45]} {[%emt 00:00:03]} Kg7 {[%clk 00:12:26]} {[%emt
00:00:07]} 71. Rg8+ {[%clk 00:20:53]} {[%emt 00:00:02]} Kh7 {[%clk 00:12:31]}
{[%emt 00:00:04]} 72. Qg6# {[%emt 00:00:43]} 1-0